bitfinex/quotes_ETHUSD_20240530
["timestamp","ask_amount","ask_price","bid_price","bid_amount"]
[1717063915350,1.94857174,3730.5,3730.4,0.08870111]
[1717063916034,1.94857174,3730.6,3730.4,0.08870111]
[1717063916235,1.94857174,3730.5,3730.4,0.08870111]
[1717063916763,1.94857174,3730.6,3730.4,0.08870111]
[1717063917551,1.94857174,3730.5,3730.4,0.08870111]
[1717063917741,3.89948406,3730.5,3729.6,7.38]
[1717063917936,2.68109,3729.9,3729.7,0.08883312]
[1717063918263,2.52848406,3729.8,3729.7,0.08883312]
[1717063921730,3.34948406,3729.8,3729.7,0.08883312]
[1717063922434,2.52848406,3729.8,3729.7,0.08883312]
[1717063923970,2.68119,3729.7,3729.4,19.46]
[1717063924166,1.94857174,3729.6,3729.5,0.08633959]
[1717063924477,2.68119,3729.7,3729.1,19.46]
[1717063924781,1.94912593,3729.6,3729.2,3.89377774]
[1717063924932,1.94912593,3729.6,3729.3,0.08637432]
[1717063925131,1.94912593,3729.6,3729.3,1.38426654]
[1717063927659,2.68132,3729.5,3729.3,0.08637432]
[1717063927834,1.94912593,3729.4,3729.3,0.08637432]
[1717063928030,1.94912593,3729.4,3729.1,19.46]
[1717063928234,1.94912593,3729.4,3729.3,0.08641936]
[1717063932450,1.94912593,3729.4,3728.9,19.46]
[1717063932451,2.68147,3729.3,3728.9,19.46]
[1717063932654,1.94912593,3729.2,3729.0,1.29789222]
[1717063936865,1.94912593,3729.2,3729.0,3.60461144]
[1717063937087,0.58014314,3729.6,3729.1,3.2288]
[1717063937407,1.9492664,3729.5,3729.2,1.29789222]
[1717063937736,1.9492664,3729.4,3729.2,1.29789222]
[1717063937955,1.9492664,3729.3,3729.2,1.29789222]
[1717063938174,1.9492664,3729.5,3729.2,1.29789222]
[1717063940260,1.9492664,3729.5,3729.2,1.74045336]
[1717063940795,1.9492664,3729.5,3729.2,2.56145336]
[1717063940972,2.68094,3730.1,3729.2,2.56145336]
[1717063941172,5.52906434,3730.0,3729.3,0.08371259]
[1717063941392,1.94899923,3729.9,3729.4,1.29789222]
[1717063941560,1.94899923,3729.9,3729.5,0.08367486]
[1717063941750,1.94899923,3729.9,3729.5,1.38156708]
[1717063942403,2.52904449,3729.9,3729.5,1.38156708]
[1717063942700,1.94899923,3729.8,3729.5,1.38156708]
[1717063947705,1.94899923,3729.8,3729.6,1.29789222]
[1717063947858,1.94899923,3729.8,3729.6,2.11889222]
[1717063948064,0.58004526,3730.3,3729.7,0.08363713]
[1717063948377,1.94883183,3730.2,3729.7,1.38152935]
[1717063948559,4.94883183,3730.2,3729.7,1.38152935]
[1717063948766,2.52887709,3730.1,3729.7,1.38152935]
[1717063949006,1.94883183,3730.0,3729.7,1.38152935]
[1717063959303,1.94883183,3730.0,3729.8,1.29789222]
[1717063959505,1.94883183,3730.0,3729.8,4.06236429]
[1717063959848,1.94883183,3730.0,3729.8,4.55070072]
[1717063960352,1.94883183,3729.9,3729.8,4.55070072]
[1717063960499,1.94883183,3730.2,3729.8,4.55070072]
[1717063960703,2.52887709,3730.2,3729.8,4.55070072]
[1717063960911,1.94883183,3730.1,3729.8,4.55070072]
[1717063961310,1.94883183,3730.0,3729.8,4.55070072]
[1717063961528,1.94883183,3729.9,3729.8,4.55070072]
[1717063961707,1.94883183,3730.3,3729.8,4.55070072]
[1717063961906,1.94883183,3730.2,3729.8,4.55070072]
[1717063962113,1.94883183,3730.1,3729.8,4.55070072]
[1717063962434,1.94883183,3730.0,3729.8,4.55070072]
[1717063962620,1.94883183,3729.9,3729.8,4.55070072]
[1717063963158,1.94883183,3730.3,3729.8,4.55070072]
[1717063963363,1.94883183,3730.2,3729.8,4.55070072]
[1717063963555,1.94883183,3730.1,3729.8,4.55070072]
[1717063963710,1.94883183,3730.0,3729.8,4.55070072]
[1717063963911,1.94883183,3729.9,3729.8,4.55070072]
[1717063964623,1.94883183,3730.3,3729.8,4.55070072]
[1717063964824,1.94883183,3730.2,3729.8,4.06236429]
[1717063965031,1.94883183,3730.1,3729.8,4.06236429]
[1717063965238,1.94883183,3730.0,3729.8,4.06236429]
[1717063965440,1.94883183,3729.9,3729.8,4.06236429]
[1717063965933,1.94883183,3729.9,3729.8,0.08337207]
[1717063966152,2.52887709,3730.2,3729.8,0.08337207]
[1717063966470,2.68106,3729.9,3729.5,19.46]
[1717063966759,2.52887709,3729.8,3729.5,19.46]
[1717063966947,1.94883183,3729.7,3729.5,19.46]
[1717063968585,4.63006183,3729.7,3729.5,19.46]
[1717063968746,2.52887709,3729.6,3729.5,19.46]
[1717063970456,2.52887709,3729.6,3729.1,26.84]
[1717063970658,1.94883183,3729.5,3729.1,26.84]
[1717063970858,1.94883183,3729.5,3729.2,0.0807803]
[1717063972059,1.94883183,3729.4,3729.2,0.0807803]
[1717063972264,1.94883183,3729.3,3729.2,0.0807803]
[1717063972579,1.94883183,3729.5,3729.2,0.0807803]
[1717063972880,1.94883183,3729.4,3729.2,0.0807803]
[1717063973034,1.94883183,3729.3,3729.2,0.0807803]
[1717063973452,1.94883183,3729.5,3729.2,0.0807803]
[1717063973635,2.68133,3729.5,3729.2,0.0807803]
[1717063973852,2.52929154,3729.4,3729.2,0.0807803]
[1717063974051,1.94924628,3729.3,3729.2,0.0807803]
[1717063976488,4.63077628,3729.3,3729.2,0.0807803]
[1717063976788,5.21091852,3729.3,3728.9,19.46]
[1717063977000,2.68153,3729.3,3729.2,0.0807803]
[1717063977149,2.68153,3729.3,3728.9,19.46]
[1717063977150,4.63084982,3729.3,3728.9,19.46]
[1717063977349,2.68153,3729.3,3729.2,0.0807803]
[1717063977549,4.63084964,3729.3,3728.9,19.46]
[1717063977749,2.68153,3729.3,3729.2,0.0807803]
[1717063978088,5.21102157,3729.3,3729.2,0.0807803]
[1717063978301,5.21102157,3729.3,3728.9,19.46]
[1717063978498,2.52949157,3729.2,3728.9,19.46]
[1717063978687,1.94931867,3729.1,3728.9,19.46]
[1717063979358,1.94931867,3729.1,3728.7,19.46]
[1717063979699,1.94931867,3729.1,3728.8,1.29789222]
[1717063981652,1.94931867,3729.1,3728.8,2.11889222]
[1717063983613,1.94931867,3729.1,3728.8,0.821]
[1717063985613,1.94931867,3729.0,3728.8,2.07084328]
[1717063985914,1.94931867,3728.9,3728.8,2.07084328]
[1717063986112,2.68125,3729.7,3728.9,0.08098407]
[1717063986113,0.58016195,3729.6,3728.9,0.08098407]
[1717063986320,1.9493539,3729.5,3729.0,0.821]
[1717063986528,1.9493539,3729.5,3729.0,0.9019652]
[1717063990913,1.9493539,3729.5,3729.1,1.78125007]
[1717063991111,1.9493539,3729.5,3729.2,0.821]
[1717063991275,1.9493539,3729.5,3729.2,0.90175027]
[1717063991478,1.9493539,3729.4,3729.2,2.19964249]
[1717063991704,1.9493539,3729.3,3729.2,2.19964249]
[1717063992018,1.9493539,3729.3,3729.2,2.73610452]
[1717063992315,1.9493539,3729.6,3729.2,2.73610452]
[1717063992473,1.9493539,3729.5,3729.2,2.73610452]
[1717063993896,1.9493539,3729.5,3729.3,1.29789222]
[1717063994229,1.9493539,3729.5,3729.4,0.821]
[1717063994370,1.9493539,3729.5,3729.4,0.90181461]
[1717063994576,1.9493539,3729.5,3729.4,2.7898075]
[1717063994889,1.9493539,3729.5,3729.4,5.4711275]
[1717063995394,2.52940797,3730.0,3729.4,5.4711275]
[1717063995707,1.9493539,3729.9,3729.6,0.821]
[1717063995907,1.9493539,3729.9,3729.6,2.11889222]
[1717063996106,1.9493539,3729.9,3729.7,0.08075802]
[1717063998183,1.9493539,3729.9,3729.7,1.37865024]
[1717063999020,1.9493539,3729.9,3729.8,0.821]
[1717063999193,1.9493539,3729.9,3729.8,0.90173916]
[1717063999606,1.9493539,3729.9,3729.8,2.19963138]
[1717064000217,2.52936404,3730.2,3729.8,2.19963138]
[1717064000386,1.9493539,3730.1,3729.8,2.19963138]
[1717064001289,1.9493539,3730.1,3730.0,3.50196]
[1717064001490,1.9493539,3730.1,3730.0,4.79985222]
[1717064001692,1.9493539,3730.1,3730.0,4.05927746]
[1717064002087,2.52936404,3730.4,3730.0,4.05927746]
[1717064002289,1.9493539,3730.3,3730.0,4.05927746]
[1717064002483,1.9493539,3730.3,3730.0,3.97885222]
[1717064002900,1.9493539,3730.3,3730.1,0.08040638]
[1717064004045,0.58001014,3730.4,3730.1,0.08040638]
[1717064004355,1.94878601,3730.3,3730.1,0.08040638]
[1717064004829,1.94878601,3730.2,3730.1,0.08040638]
[1717064004992,2.52879615,3730.4,3730.1,0.08040638]
[1717064005192,1.94878601,3730.3,3730.1,0.08040638]
[1717064007134,1.94878601,3730.3,3729.7,3.50217]
[1717064007295,1.94878601,3730.3,3730.2,0.08038753]
[1717064007496,1.94878601,3730.3,3729.8,1.64810922]
[1717064007996,1.94878601,3730.3,3729.9,0.0804441]
[1717064008196,1.94878601,3730.3,3730.0,1.29789222]
[1717064008531,1.94878601,3730.3,3730.1,0.08040638]
[1717064014747,2.52879615,3730.3,3730.1,0.08040638]
[1717064014932,1.94878601,3730.2,3730.1,0.08040638]
[1717064015127,1.94878601,3730.4,3730.1,0.08040638]
[1717064015333,1.94878601,3730.3,3730.1,0.08040638]
[1717064015535,1.94878601,3730.2,3730.1,0.08040638]
[1717064015845,1.94878601,3730.4,3730.1,0.08040638]
[1717064019155,2.68082,3730.2,3730.1,0.08040638]
[1717064019333,5.20961615,3730.2,3730.1,0.08040638]
[1717064019534,5.20961615,3730.2,3729.4,10.06137]
[1717064019835,2.52879615,3730.1,3729.5,1.29789222]
[1717064020032,1.94878601,3730.0,3729.5,1.29789222]
[1717064021659,1.94878601,3730.0,3729.5,2.11889222]
[1717064021960,1.94878601,3730.0,3729.5,4.71477774]
[1717064024223,1.94878601,3730.0,3729.5,3.89377774]
[1717064024423,1.94878601,3730.0,3729.5,4.71477774]
[1717064025437,1.94878601,3730.0,3729.5,3.89377774]
[1717064025631,1.94878601,3730.0,3729.5,4.71477774]
[1717064026426,1.94878601,3730.0,3729.5,3.89377774]
[1717064026628,1.94878601,3730.0,3729.5,4.71477774]
[1717064028332,1.94878601,3730.0,3729.5,1.29789222]
[1717064028941,1.94878601,3730.0,3729.6,0.08056071]
[1717064029147,1.94878601,3730.0,3729.7,1.29789222]
[1717064029467,1.94878601,3730.0,3729.7,1.37843407]
[1717064030448,1.94878601,3729.9,3729.7,1.37843407]
[1717064030772,1.94878601,3729.8,3729.7,1.37843407]
[1717064030935,1.94878601,3730.0,3729.7,1.37843407]
[1717064031137,1.94878601,3729.9,3729.7,1.37843407]
[1717064031457,0.58001014,3730.1,3729.7,1.37843407]
[1717064031458,1.94878601,3729.8,3729.7,1.37843407]
[1717064031861,1.94878601,3730.0,3729.7,1.37843407]
[1717064032102,1.94878601,3729.9,3729.7,1.37843407]
[1717064032261,0.58001014,3730.1,3729.7,1.37843407]
[1717064032262,1.94878601,3729.8,3729.7,1.37843407]
[1717064042757,2.20166563,3729.8,3729.7,0.08054185]
[1717064042993,2.20166563,3729.8,3729.5,19.46]
[1717064042994,2.68118,3729.7,3729.5,19.46]
[1717064043292,2.52879615,3729.6,3729.5,19.46]
[1717064043987,2.52879615,3729.6,3729.5,19.5405946]
[1717064046685,3.89608173,3729.6,3729.5,0.0805946]
[1717064046872,2.68141,3729.4,3728.5,7.38]
[1717064047071,2.52879615,3729.3,3728.6,1.37868064]
[1717064047273,1.94878601,3729.2,3728.6,1.37868064]
[1717064047467,1.94878601,3729.1,3728.6,2.19968064]
[1717064047685,1.94878601,3729.0,3728.6,1.37868064]
[1717064047867,1.94878601,3728.9,3728.6,1.37868064]
[1717064048082,0.58001014,3729.3,3728.6,1.37868064]
[1717064048083,1.94878601,3728.8,3728.6,2.13214435]
[1717064048283,0.58001014,3729.3,3728.7,0.821]
[1717064048458,1.94930579,3729.2,3728.8,1.37878101]
[1717064048660,1.94930579,3729.1,3728.9,0.821]
[1717064048893,1.94930579,3729.0,3728.9,2.11889222]
[1717064049192,1.94930579,3729.2,3728.9,2.59896644]
[1717064049362,1.94930579,3729.1,3729.0,1.29789222]
[1717064049752,0.58001014,3729.6,3729.0,1.29789222]
[1717064049753,1.94930579,3729.5,3729.0,1.29789222]
[1717064049958,1.94930579,3729.4,3729.0,1.29789222]
[1717064050187,1.94930579,3729.3,3729.0,1.29789222]
[1717064050358,1.94930579,3729.2,3729.0,1.29789222]
[1717064050557,0.58001014,3729.6,3729.0,1.29789222]
[1717064050558,1.94930579,3729.1,3729.0,1.29789222]
[1717064050759,1.94930579,3729.5,3729.0,1.29789222]
[1717064050968,1.94930579,3729.4,3729.0,1.29789222]
[1717064051172,1.94930579,3729.3,3729.0,1.29789222]
[1717064051395,1.94930579,3729.2,3729.0,1.29789222]
[1717064051596,0.58001014,3729.6,3729.0,1.29789222]
[1717064051597,1.94930579,3729.1,3729.0,1.29789222]
[1717064051805,1.94930579,3729.5,3729.0,1.29789222]
[1717064051975,1.94930579,3729.4,3729.0,1.29789222]
[1717064052172,1.94930579,3729.3,3729.0,1.29789222]
[1717064052372,1.94930579,3729.2,3729.0,1.29789222]
[1717064052574,1.94930579,3729.1,3729.0,1.29789222]
[1717064052905,1.94930579,3729.5,3729.0,1.29789222]
[1717064053114,1.94930579,3729.4,3729.0,1.29789222]
[1717064053418,1.94930579,3729.3,3729.0,1.29789222]
[1717064053576,1.94930579,3729.2,3729.0,1.29789222]
[1717064053777,1.94930579,3729.1,3729.0,1.29789222]
[1717064054176,1.94930579,3729.5,3729.0,1.29789222]
[1717064054400,1.94930579,3729.4,3729.0,1.29789222]
[1717064054651,1.94930579,3729.3,3729.0,1.29789222]
[1717064054779,1.94930579,3729.2,3729.0,1.29789222]
[1717064054979,1.94930579,3729.1,3729.0,1.29789222]
[1717064055388,1.94930579,3729.5,3729.0,1.29789222]
[1717064055595,1.94930579,3729.4,3729.0,1.29789222]
[1717064055923,1.94930579,3729.3,3729.0,1.29789222]
[1717064056092,1.94930579,3729.2,3729.0,1.29789222]
[1717064056294,1.94930579,3729.1,3729.0,1.29789222]
[1717064056505,1.94930579,3729.5,3729.0,1.29789222]
[1717064056705,1.94930579,3729.4,3729.0,1.29789222]
[1717064056902,1.94930579,3729.3,3729.0,1.29789222]
[1717064057109,1.94930579,3729.2,3729.0,1.29789222]
[1717064057327,1.94930579,3729.1,3728.7,2.68185]
[1717064057532,1.94930579,3729.0,3728.8,1.29789222]
[1717064057824,1.94930579,3728.9,3728.8,1.29789222]
[1717064058131,2.52931593,3729.4,3728.8,1.29789222]
[1717064058330,1.94930579,3729.3,3728.8,1.29789222]
[1717064058540,1.94930579,3729.2,3728.8,1.29789222]
[1717064058740,1.94930579,3729.1,3728.8,1.29789222]
[1717064058918,1.94930579,3729.0,3728.9,0.08105046]
[1717064059110,1.94930579,3729.2,3728.9,1.37894268]
[1717064059343,1.94930579,3729.1,3728.9,1.37894268]
[1717064059825,1.94930579,3729.0,3728.9,0.08105046]
[1717064060216,2.52946522,3729.0,3728.5,7.38]
[1717064060413,2.52946522,3729.0,3728.9,0.08105046]
[1717064060414,0.58015943,3729.0,3728.9,0.08105046]
[1717064060620,2.52954249,3729.0,3728.6,1.29789222]
[1717064060946,1.94938938,3728.9,3728.6,1.29789222]
[1717064061236,1.94938938,3728.9,3728.7,0.08108821]
[1717064061445,1.94938938,3728.9,3728.7,1.37898043]
[1717064062832,1.94938938,3728.9,3728.7,0.08108821]
[1717064063338,1.94938938,3728.9,3728.8,0.08106934]
[1717064063549,1.94938938,3728.9,3728.5,7.38]
[1717064063774,1.94938938,3728.9,3728.6,1.3789993]
[1717064072281,0.58015943,3729.0,3728.6,1.3789993]
[1717064072682,1.94942787,3728.9,3728.8,0.821]
[1717064073307,1.94942787,3728.9,3728.8,0.90218347]
[1717064073971,1.94942787,3728.9,3728.8,0.08118347]
[1717064074172,1.94942787,3728.9,3728.8,0.821]
[1717064074400,1.94942787,3728.9,3728.8,0.90218347]
[1717064077916,1.94942787,3728.9,3728.8,2.20007569]
[1717064078204,1.94942787,3728.9,3728.8,4.36608326]
[1717064078416,2.5295976,3729.6,3728.8,4.36608326]
[1717064078570,1.94942787,3729.5,3729.2,0.821]
[1717064078777,1.94942787,3729.5,3729.3,0.0810831]
[1717064079376,1.94942787,3729.4,3729.0,20.281]
[1717064079606,1.94942787,3729.3,3729.1,0.90206077]
[1717064079912,1.94942787,3729.2,3729.1,0.90206077]
[1717064080267,1.94942787,3729.2,3729.1,0.08106077]
[1717064080977,1.94942787,3729.2,3729.1,0.90206077]
[1717064081195,1.94942787,3729.5,3729.1,0.08106077]
[1717064081400,1.94942787,3729.4,3729.1,0.08106077]
[1717064081602,1.94942787,3729.3,3729.1,0.08106077]
[1717064081913,1.94942787,3729.2,3729.1,0.08106077]
[1717064082207,1.94942787,3729.5,3729.1,0.08106077]
[1717064082413,1.94942787,3729.4,3729.1,0.08106077]
[1717064082571,1.94942787,3729.3,3729.1,0.08106077]
[1717064082769,1.94942787,3729.2,3729.1,0.08106077]
[1717064083009,1.94942787,3729.5,3729.1,0.08106077]
[1717064083212,1.94942787,3729.4,3729.1,0.08106077]
[1717064083513,1.94942787,3729.3,3729.1,0.08106077]
[1717064083808,1.94942787,3729.2,3729.1,0.08106077]
[1717064084110,2.52957592,3729.3,3729.1,0.08106077]
[1717064084321,1.94942787,3729.2,3729.1,0.08106077]
[1717064087128,1.94942787,3729.2,3728.9,2.11889222]
[1717064087424,1.9492856,3729.1,3729.0,0.08107963]
[1717064090935,1.9492856,3729.1,3728.8,20.281]
[1717064091102,1.9492856,3729.0,3728.8,20.281]
[1717064091312,1.9492856,3728.9,3728.8,20.281]
[1717064093337,1.9492856,3728.9,3728.8,19.46]
[1717064093537,2.14421416,3728.9,3728.8,19.46]
[1717064093696,2.14421416,3728.9,3728.4,19.46]
[1717064093901,4.6311056,3728.8,3728.2,19.46]
[1717064094241,2.58306994,3728.7,3728.2,19.46]
[1717064094463,4.6312856,3728.6,3728.2,19.46]
[1717064094749,2.52943365,3728.5,3728.2,19.46]
[1717064094900,1.9492856,3728.4,3728.2,19.46]
[1717064095101,1.9492856,3728.3,3728.2,19.46]
[1717064099509,1.9492856,3728.3,3728.0,19.46]
[1717064099706,1.9492856,3728.2,3728.0,19.46]
[1717064099955,0.58014805,3728.5,3728.0,19.46]
[1717064099956,1.9492856,3728.1,3728.0,19.46]
[1717064100156,1.9492856,3728.1,3727.7,3.50355]
[1717064100157,1.9492856,3728.1,3727.8,19.46]
[1717064100405,1.9492856,3728.0,3727.8,20.75789222]
[1717064100541,1.9492856,3727.9,3727.6,19.46]
[1717064100730,1.9492856,3727.8,3727.6,19.46]
[1717064100938,1.9492856,3727.7,3727.6,19.46]
[1717064102942,1.9492856,3727.7,3727.6,21.7598]
[1717064103153,1.9492856,3727.7,3727.6,25.65357774]
[1717064103368,1.9492856,3727.7,3727.6,23.05769222]
[1717064103939,1.9492856,3727.7,3727.6,23.9606219]
[1717064104134,0.58034735,3728.2,3727.7,2.68258]
[1717064104456,2.68184,3728.8,3727.7,2.68258]
[1717064104457,1.94989549,3728.1,3727.8,1.37995544]
[1717064104782,2.68184,3728.8,3728.0,0.821]
[1717064105078,1.94957952,3728.7,3728.2,2.68225]
[1717064105288,1.94957952,3728.6,3728.4,2.6821]
[1717064105488,0.58016915,3729.5,3728.7,2.68188]
[1717064105786,1.94927525,3729.4,3729.0,0.821]
[1717064106087,2.68126,3729.6,3729.1,0.08157444]
[1717064106088,1.94927525,3729.3,3729.1,0.08157444]
[1717064106273,1.94927525,3729.2,3729.1,0.08157444]
[1717064106644,1.94927525,3729.2,3728.8,1.29789222]
[1717064106846,2.14420278,3729.1,3728.6,19.46]
[1717064107069,5.45196525,3729.0,3728.5,19.46]
[1717064107377,1.94927525,3728.9,3728.5,19.46]
[1717064107596,1.94927525,3728.8,3728.5,19.46]
[1717064107775,1.94927525,3728.7,3728.5,19.46]
[1717064107976,1.94927525,3728.6,3728.1,19.46]
[1717064108176,1.94927525,3728.5,3728.1,20.75789222]
[1717064108391,1.94927525,3728.4,3728.1,20.75789222]
[1717064108690,1.94927525,3728.3,3728.1,20.75789222]
[1717064108856,1.94927525,3728.3,3728.1,21.57889222]
[1717064109056,1.94927525,3728.2,3728.1,20.75789222]
[1717064109553,1.94927525,3728.7,3728.1,20.75789222]
[1717064109748,1.94927525,3728.6,3728.1,20.75789222]
[1717064110087,1.94927525,3728.5,3728.1,20.75789222]
[1717064110279,1.94927525,3728.4,3728.1,20.75789222]
[1717064110454,1.94927525,3728.3,3728.1,20.75789222]
[1717064110652,1.94927525,3728.2,3728.1,19.46]
[1717064111153,1.94927525,3728.2,3728.0,12.36]
[1717064111154,1.94927525,3728.2,3728.0,19.46]
[1717064111353,1.94927525,3728.1,3728.0,19.46]
[1717064114600,1.94927525,3728.4,3728.0,19.46]
[1717064114803,1.94927525,3728.3,3728.0,19.46]
[1717064115008,1.94927525,3728.2,3728.0,19.46]
[1717064115215,1.94927525,3728.1,3728.0,20.75789222]
[1717064115513,1.94927525,3728.4,3728.0,20.75789222]
[1717064115675,1.94927525,3728.3,3728.0,20.75789222]
[1717064115875,2.68206,3728.5,3728.0,20.75789222]
[1717064115876,1.94927525,3728.2,3728.0,20.75789222]
[1717064116076,1.94927525,3728.1,3728.0,20.75789222]
[1717064116793,1.94927525,3728.4,3728.0,20.75789222]
[1717064116992,1.94927525,3728.3,3728.0,1.29789222]
[1717064117211,1.94927525,3728.2,3728.0,1.29789222]
[1717064117395,1.94927525,3728.1,3728.0,1.29789222]
[1717064117709,1.94927525,3728.4,3728.0,1.29789222]
[1717064117917,1.94927525,3728.3,3728.0,1.29789222]
[1717064118090,1.94927525,3728.2,3728.0,1.29789222]
[1717064118293,1.94927525,3728.1,3727.8,2.68254]
[1717064118488,0.58028789,3728.8,3728.1,2.68232]
[1717064118688,1.94974122,3728.7,3728.1,2.68232]
[1717064118892,1.94974122,3728.6,3728.1,2.68232]
[1717064119093,2.68153,3729.3,3727.7,4.56688552]
[1717064119094,1.94974122,3728.5,3728.3,2.68217]
[1717064119290,1.94974122,3728.4,3728.3,2.68217]
[1717064119491,0.58023201,3729.2,3728.4,0.08177265]
[1717064119800,0.58023201,3729.2,3728.3,2.68217]
[1717064119801,1.9494628,3729.1,3728.5,0.08175378]
[1717064120014,1.9494628,3729.0,3728.3,2.68217]
[1717064120323,1.9494628,3728.9,3728.4,1.37966487]
[1717064120490,1.9494628,3728.8,3728.4,1.37966487]
[1717064120692,1.9494628,3728.7,3728.4,1.37966487]
[1717064120898,1.9494628,3728.6,3728.4,1.37966487]
[1717064121095,1.9494628,3728.5,3728.4,1.37966487]
[1717064121304,1.9494628,3729.1,3728.4,1.37966487]
[1717064121510,1.9494628,3729.0,3728.4,1.37966487]
[1717064121723,1.9494628,3728.9,3728.4,1.37966487]
[1717064122022,1.9494628,3728.8,3728.4,1.37966487]
[1717064122181,1.9494628,3728.7,3728.4,1.37966487]
[1717064122378,1.9494628,3728.6,3728.4,1.37966487]
[1717064122608,1.9494628,3728.5,3728.4,1.37966487]
[1717064123348,0.580206,3729.2,3728.4,3.73184836]
[1717064123349,1.9494628,3729.1,3728.4,3.73184836]
[1717064123517,1.9494628,3729.0,3728.4,1.37966487]
[1717064123714,1.9494628,3728.9,3728.4,1.37966487]
[1717064123915,1.9494628,3728.8,3728.4,1.37966487]
[1717064124116,1.9494628,3728.7,3728.4,1.37966487]
[1717064124353,1.9494628,3728.6,3728.4,1.37966487]
[1717064124657,1.9494628,3728.5,3728.4,1.37966487]
[1717064124851,1.9494628,3729.1,3728.4,1.37966487]
[1717064125062,1.9494628,3729.0,3728.4,1.37966487]
[1717064125357,0.580206,3729.2,3728.4,1.37966487]
[1717064125358,1.9494628,3728.9,3728.4,1.37966487]
[1717064125651,1.9494628,3728.8,3728.4,1.37966487]
[1717064125863,1.9494628,3728.7,3728.4,1.37966487]
[1717064126066,1.9494628,3728.6,3728.4,1.37966487]
[1717064126288,1.9494628,3728.5,3728.4,1.37966487]
[1717064126561,1.9494628,3729.1,3728.4,1.37966487]
[1717064126736,1.9494628,3729.0,3728.4,1.37966487]
[1717064126938,1.9494628,3728.9,3728.4,1.37966487]
[1717064127251,1.9494628,3728.8,3728.4,1.37966487]
[1717064127454,1.9494628,3728.7,3728.4,1.37966487]
[1717064127650,1.9494628,3728.6,3728.4,1.37966487]
[1717064127959,1.9494628,3728.5,3728.4,1.37966487]
[1717064128468,1.9494628,3729.1,3728.4,3.73184836]
[1717064128618,1.9494628,3729.0,3728.4,1.37966487]
[1717064128958,1.9494628,3728.9,3728.4,1.37966487]
[1717064129158,1.9494628,3728.8,3728.4,1.37966487]
[1717064129360,1.9494628,3728.7,3728.4,1.37966487]
[1717064129564,1.9494628,3728.6,3728.4,1.37966487]
[1717064129730,1.9494628,3728.5,3728.4,1.37966487]
[1717064129918,1.9494628,3729.1,3728.4,3.73184836]
[1717064130261,1.9494628,3729.0,3728.4,1.37966487]
[1717064130579,1.9494628,3728.9,3728.4,2.20066487]
[1717064130856,1.9494628,3728.8,3728.4,2.20066487]
[1717064131157,1.9494628,3728.7,3728.4,2.20066487]
[1717064131314,1.9494628,3728.6,3728.4,2.20066487]
[1717064131520,1.9494628,3728.5,3728.4,2.20066487]
[1717064131817,1.9494628,3729.1,3728.4,2.22318598]
[1717064132025,1.9494628,3729.0,3728.4,2.22318598]
[1717064132225,1.9494628,3728.9,3728.4,2.22318598]
[1717064132521,1.9494628,3728.8,3728.4,2.22318598]
[1717064132721,1.9494628,3728.7,3728.4,2.22318598]
[1717064132959,1.9494628,3728.6,3728.4,2.22318598]
[1717064133161,1.9494628,3728.5,3728.4,2.22318598]
[1717064133468,1.94944874,3729.1,3728.5,2.68202]
[1717064133615,1.9494524,3729.0,3728.6,2.11889222]
[1717064133819,1.9494524,3728.9,3728.7,0.10405651]
[1717064134024,0.58019381,3729.2,3728.8,1.29789222]
[1717064134260,1.94938087,3729.1,3728.8,1.29789222]
[1717064134464,1.94938087,3729.0,3728.9,0.10399653]
[1717064137250,1.94938087,3729.0,3728.9,1.40188875]
[1717064137967,1.94938087,3729.4,3728.9,1.40188875]
[1717064138267,1.94938087,3729.3,3729.0,2.11889222]
[1717064138473,2.68104,3729.9,3729.0,2.11889222]
[1717064138474,1.94938087,3729.2,3729.1,2.68161]
[1717064138675,2.52949923,3729.7,3729.1,4.9044598]
[1717064138890,0.58011836,3729.7,3729.3,3.50246]
[1717064139103,1.94909083,3729.6,3729.5,3.50232]
[1717064139393,0.58011836,3730.2,3729.5,3.50232]
[1717064139394,1.94909083,3730.1,3729.5,4.80021222]
[1717064139616,0.58011836,3730.2,3729.5,4.80021222]
[1717064139617,1.94878394,3730.0,3729.7,0.821]
[1717064139897,0.58011836,3730.2,3729.7,0.821]
[1717064140048,0.58011836,3730.2,3729.8,0.10377322]
[1717064140241,0.32609284,3730.2,3729.8,1.40166544]
[1717064140448,1.94880381,3730.1,3729.8,1.40166544]
[1717064140687,1.94880381,3730.0,3729.8,1.40166544]
[1717064140855,0.58000233,3730.6,3729.9,2.11889222]
[1717064141061,1.94876752,3730.5,3729.9,2.11889222]
[1717064141294,1.94876752,3730.4,3729.9,2.11889222]
[1717064141497,1.94876752,3730.3,3730.0,0.10347903]
[1717064154501,0.05363629,3730.2,3730.0,0.10347903]
[1717064154704,2.49876752,3730.1,3730.0,0.10347903]
[1717064154905,3.07878988,3730.1,3729.2,7.38]
[1717064155215,2.52878988,3730.0,3729.3,1.39784301]
[1717064155412,1.94876752,3729.9,3729.3,1.39784301]
[1717064156948,2.68111,3729.8,3729.3,0.09995079]
[1717064157116,2.68126,3729.6,3729.3,0.09995079]
[1717064157312,2.52885477,3729.5,3728.7,2.68186]
[1717064157542,1.94876752,3729.4,3728.8,1.29789222]
[1717064157763,2.52885477,3729.4,3728.8,1.39472436]
[1717064157969,1.94876752,3729.3,3728.8,1.39472436]
[1717064159669,4.63024752,3729.3,3728.8,1.39472436]
[1717064159975,2.52885477,3729.2,3728.8,1.39472436]
[1717064160136,1.94876752,3729.1,3728.8,1.39472436]
[1717064161275,1.94876752,3729.1,3728.8,0.09683214]
[1717064161448,2.469801,3729.1,3728.8,0.09683214]
[1717064161649,2.52885477,3729.0,3728.3,2.68211]
[1717064161847,4.63057752,3728.9,3728.3,1.29789222]
[1717064162177,4.63057752,3728.9,3728.4,0.09367677]
[1717064162178,2.68191,3728.7,3728.4,0.09367677]
[1717064162344,2.68204,3728.5,3728.4,0.09367677]
[1717064162543,2.68204,3728.5,3727.9,26.84]
[1717064162544,5.21089477,3728.5,3727.9,26.84]
[1717064162850,2.52971079,3728.4,3728.0,1.29789222]
[1717064163161,1.94962354,3728.3,3728.1,0.08786567]
[1717064164160,1.94962354,3728.2,3728.1,0.08786567]
[1717064164355,1.94962354,3728.4,3728.1,19.54786567]
[1717064167682,2.68204,3728.5,3728.1,20.84575789]
[1717064168111,1.94971828,3728.4,3728.2,2.47388736]
[1717064168272,1.94966059,3728.3,3728.2,24.61613736]
[1717064168473,0.821,3729.2,3728.3,0.08510088]
[1717064168696,1.94943502,3729.1,3728.4,3.58189104]
[1717064169009,1.94943502,3729.0,3728.4,3.66695441]
[1717064169894,1.94943502,3728.9,3728.6,2.68195]
[1717064170101,1.94943502,3728.9,3728.7,1.29789222]
[1717064170302,1.94943502,3728.9,3728.7,1.382789]
[1717064170488,0.58015153,3729.4,3728.8,0.4064739]